bitfinex-derivatives/quotes_ETHF0:USTF0_20250702
["timestamp","ask_amount","ask_price","bid_price","bid_amount"]
[1751437602431,43.73148,2439.9,2439.8,0.83316606]
[1751437603835,39.70466228,2439.9,2439.8,0.83316606]
[1751437609036,41.02326228,2439.9,2439.8,0.83316606]
[1751437609239,38.67018,2439.9,2439.8,0.83316606]
[1751437610934,38.67018,2439.9,2439.1,40.8]
[1751437611141,0.81985,2439.1,2439.0,0.6969]
[1751437611335,25.76185,2439.1,2439.0,0.6969]
[1751437612136,25.76185,2439.1,2439.0,2.1078]
[1751437612438,25.76185,2439.1,2439.0,2.7769]
[1751437613840,25.76185,2439.1,2439.0,1.366]
[1751437616940,25.76485,2439.1,2439.0,1.366]
[1751437617332,0.81985,2439.1,2439.0,1.366]
[1751437617537,25.76585,2439.1,2439.0,1.366]
[1751437618938,0.81985,2439.1,2439.0,1.366]
[1751437619144,25.76485,2439.1,2439.0,1.366]
[1751437620333,28.11793228,2439.1,2439.0,1.366]
[1751437620739,3.17293228,2439.1,2439.0,1.366]
[1751437621043,28.11993228,2439.1,2439.0,1.366]
[1751437625141,28.11993228,2439.1,2439.0,0.6691]
[1751437625842,0.81985,2439.1,2439.0,0.6691]
[1751437626042,11.595,2439.4,2439.0,6.9849]
[1751437626243,0.8198,2439.3,2439.1,2.35308228]
[1751437626540,0.8198,2439.3,2439.1,4.48872228]
[1751437626541,23.8548,2439.2,2439.1,4.48872228]
[1751437626741,23.8548,2439.2,2439.1,3.17292228]
[1751437626941,24.67462,2439.2,2439.1,3.17292228]
[1751437627243,24.67462,2439.2,2439.1,2.35308228]
[1751437627749,24.67462,2439.2,2439.1,3.17293228]
[1751437628049,23.8548,2439.2,2439.1,8.17293228]
[1751437628447,23.8548,2439.2,2439.1,3.17293228]
[1751437629148,24.67462,2439.2,2439.1,3.17293228]
[1751437629350,24.67462,2439.2,2439.1,2.35308228]
[1751437629550,24.67462,2439.2,2439.1,3.17293228]
[1751437629746,23.8548,2439.2,2439.1,3.88003228]
[1751437629943,25.76682,2439.2,2439.1,3.88003228]
[1751437630139,24.947,2439.2,2439.1,3.88003228]
[1751437630344,25.76682,2439.2,2439.1,3.06018228]
[1751437630546,25.76682,2439.2,2439.1,0.7071]
[1751437631250,25.76682,2439.2,2439.1,1.52695]
[1751437631551,25.76682,2439.2,2439.1,0.7071]
[1751437632450,25.76682,2439.2,2439.1,1.52695]
[1751437633048,25.76682,2439.2,2439.1,0.7071]
[1751437633849,0.81985,2439.1,2439.0,0.6691]
[1751437634146,3.17293228,2439.1,2439.0,0.6691]
[1751437634739,0.81995,2438.8,2438.7,0.7244]
[1751437634940,28.11903228,2438.8,2438.7,0.7244]
[1751437635349,0.81998,2438.7,2438.6,0.727]
[1751437637348,0.82005,2438.5,2438.4,46.49750258]
[1751437637547,3.17313228,2438.5,2438.4,47.20870258]
[1751437637749,0.82005,2438.5,2438.4,47.20870258]
[1751437639256,0.82005,2438.5,2438.4,5.69750258]
[1751437639455,0.82012,2438.3,2438.2,6.42380258]
[1751437639646,3.17320228,2438.3,2438.2,6.42380258]
[1751437639851,0.82012,2438.3,2438.2,6.42380258]
[1751437640252,3.17320228,2438.3,2438.2,6.42380258]
[1751437640651,3.17320228,2438.3,2438.2,5.69750258]
[1751437640856,4.56960228,2438.3,2438.2,5.69750258]
[1751437641156,0.82022,2438.0,2437.9,6.42380258]
[1751437641556,25.86422,2438.0,2437.9,6.42380258]
[1751437641856,25.044,2438.0,2437.9,6.42380258]
[1751437642057,25.046,2438.1,2437.9,7.24403258]
[1751437642353,25.86618,2438.1,2438.0,0.6964]
[1751437642753,0.82017,2438.2,2438.0,5.6964]
[1751437642956,25.86813,2438.3,2438.0,0.6964]
[1751437643155,0.82015,2438.2,2438.0,0.6964]
[1751437643347,25.86814,2438.3,2438.0,1.51661]
[1751437643551,25.86814,2438.3,2438.1,0.82018]
[1751437644456,0.82015,2438.2,2438.0,0.6964]
[1751437644657,25.86814,2438.3,2438.0,0.6964]
[1751437644952,2.35308228,2438.4,2438.2,0.82013]
[1751437644953,3.17320228,2438.4,2438.2,0.82013]
[1751437645154,59.029,2439.4,2438.3,0.6752]
[1751437645360,0.82004,2438.6,2438.4,0.82007]
[1751437646453,25.95702,2438.6,2438.4,0.82007]
[1751437647160,25.95802,2438.6,2438.4,0.82007]
[1751437647361,0.82005,2438.5,2438.4,2.25227]
[1751437647560,0.82005,2438.5,2438.4,1.4322]
[1751437647858,0.82004,2438.6,2438.4,2.25228]
[1751437648555,0.82002,2438.6,2438.5,0.82003]
[1751437648752,0.81993,2438.9,2438.7,0.81996]
[1751437649058,0.81993,2438.9,2438.7,0.81997]
[1751437649258,0.81993,2438.9,2438.8,0.6926]
[1751437649560,0.8199,2439.0,2438.8,0.6926]
[1751437649863,25.133,2439.0,2438.9,0.81992]
[1751437650058,25.9529,2439.0,2438.8,42.31254]
[1751437650359,25.9529,2439.0,2438.9,0.81992]
[1751437650863,0.81987,2439.1,2438.9,0.81992]
[1751437651062,13.7221,2439.3,2438.8,41.4926]
[1751437651063,2.35308228,2439.3,2438.8,41.4926]
[1751437651360,27.48008228,2439.3,2439.1,0.81985]
[1751437651552,28.29986228,2439.3,2439.2,1.49242]
[1751437651752,2.35308228,2439.3,2439.2,1.49242]
[1751437651961,25.94577,2439.4,2439.2,1.49242]
[1751437652155,25.126,2439.4,2439.2,0.6726]
[1751437652354,25.126,2439.4,2439.2,1.4924]
[1751437652553,0.81977,2439.4,2439.2,1.4924]
[1751437652749,25.94977,2439.4,2439.2,1.4924]
[1751437653451,0.81977,2439.4,2439.2,1.4924]
[1751437653663,25.94677,2439.4,2439.2,1.4924]
[1751437654459,25.93876,2439.4,2439.2,1.4924]
[1751437654662,25.119,2439.4,2438.9,1.4049]
[1751437654862,0.81985,2439.1,2439.0,1.53027]
[1751437655164,0.81984,2439.2,2439.0,1.53027]
[1751437655460,3.17288228,2439.3,2439.1,0.81985]
[1751437655862,0.81982,2439.2,2439.0,1.53026]
[1751437656265,0.81982,2439.2,2439.0,2.92706]
[1751437656457,0.81982,2439.2,2439.0,2.1072]
[1751437656657,0.81982,2439.2,2439.0,2.92705]
[1751437656952,0.81982,2439.2,2439.0,2.92707]
[1751437657662,0.81982,2439.2,2439.1,0.81985]
[1751437657852,3.17289228,2439.3,2439.1,0.81985]
[1751437658257,2.35308228,2439.3,2439.1,0.81985]
[1751437658463,3.17289228,2439.3,2439.1,0.81985]
[1751437658763,0.81982,2439.2,2439.1,0.81985]
[1751437659061,2.35308228,2439.3,2439.2,0.81982]
[1751437659258,3.17288228,2439.3,2439.1,0.81983]
[1751437659664,0.81982,2439.2,2439.1,0.81983]
[1751437660263,3.17288228,2439.3,2439.1,0.81983]
[1751437660464,3.17288228,2439.3,2439.2,0.81982]
[1751437660763,3.17288228,2439.3,2439.0,2.1072]
[1751437660968,3.17288228,2439.3,2439.1,0.81985]
[1751437661260,3.17288228,2439.3,2439.2,0.81982]
[1751437661463,0.81982,2439.2,2439.1,0.81983]
[1751437661666,3.17288228,2439.3,2439.1,0.81983]
[1751437662060,0.81982,2439.2,2439.1,0.81983]
[1751437662361,2.35308228,2439.3,2439.0,2.1072]
[1751437662560,3.17288228,2439.3,2439.2,0.81982]
[1751437662760,3.17285228,2439.4,2439.0,2.1072]
[1751437662967,3.17285228,2439.4,2439.2,0.81978]
[1751437663466,2.35308228,2439.4,2439.0,2.1072]
[1751437663668,2.35308228,2439.4,2439.1,2.24942]
[1751437663669,0.81978,2439.3,2439.1,2.24942]
[1751437663967,0.81982,2439.2,2439.1,2.24942]
[1751437664466,0.81982,2439.2,2439.1,2.24945]
[1751437664666,0.81981,2439.3,2439.2,0.81981]
[1751437665365,0.81983,2439.2,2439.1,0.81984]
[1751437666364,0.81981,2439.3,2439.2,0.8198]
[1751437666666,3.17285228,2439.4,2439.3,0.81978]
[1751437667171,0.81979,2439.3,2439.2,0.81979]
[1751437668570,28.23685228,2439.4,2439.3,0.81978]
[1751437668969,28.23685228,2439.4,2439.0,2.0909]
[1751437668970,0.81979,2439.3,2439.2,0.81979]
[1751437669272,28.23685228,2439.4,2439.3,0.81978]
[1751437672268,0.81978,2439.3,2439.2,0.81979]
[1751437673776,28.23685228,2439.4,2439.3,0.81978]
[1751437674075,3.17285228,2439.4,2439.3,0.81978]
[1751437674477,3.17285228,2439.4,2439.2,0.81981]
[1751437674778,0.81978,2439.3,2439.2,0.81982]
[1751437674977,0.81982,2439.2,2439.1,2.17293]
[1751437676076,0.81982,2439.2,2439.1,1.3531]
[1751437676469,0.81982,2439.2,2439.1,2.17295]
[1751437677275,0.81982,2439.2,2439.1,1.3531]
[1751437677464,2.35308228,2439.5,2439.1,1.3531]
[1751437677669,0.81984,2439.2,2439.1,0.81984]
[1751437678876,0.81981,2439.3,2439.2,0.81981]
[1751437679075,0.81982,2439.2,2439.1,0.81983]
[1751437679376,0.81981,2439.3,2439.2,0.81981]
[1751437679976,0.81977,2439.4,2439.3,0.81978]
[1751437680180,0.81975,2439.4,2439.3,0.81978]
[1751437680476,0.81979,2439.3,2439.2,0.81979]
[1751437680778,0.81977,2439.4,2439.3,0.81978]
[1751437681279,0.81974,2439.5,2439.4,0.81975]
[1751437681978,0.81976,2439.4,2439.3,0.81976]
[1751437682182,0.81979,2439.3,2439.2,0.81979]
[1751437682477,0.81979,2439.3,2439.2,0.81982]
[1751437683079,0.81985,2439.1,2439.0,0.81988]
[1751437684487,0.81985,2439.1,2438.9,1.5237]
[1751437684784,0.81988,2439.0,2438.9,1.5237]
[1751437685180,0.81988,2439.0,2438.9,0.8199]
[1751437685381,0.81988,2439.0,2438.9,1.5183]
[1751437686186,0.81988,2439.0,2438.9,0.6984]
[1751437687381,4.40279228,2439.1,2438.8,5.69750258]
[1751437687585,2.35308228,2438.9,2438.8,5.69750258]
[1751437687781,0.81998,2438.7,2438.6,6.51751258]
[1751437688086,0.81998,2438.7,2438.6,47.31751258]
[1751437688780,0.81998,2438.7,2438.6,46.49750258]
[1751437688982,0.81996,2438.8,2438.6,47.99280258]
[1751437689183,2.35308228,2439.1,2438.6,49.34330258]
[1751437689184,0.81998,2438.7,2438.6,49.34330258]
[1751437689586,0.81997,2438.8,2438.6,49.34330258]
[1751437689881,2.35308228,2439.1,2438.6,48.52330258]
[1751437690088,0.81998,2438.7,2438.6,47.17280258]
[1751437690287,0.81998,2438.7,2438.6,41.4753]
[1751437691394,2.06918,2439.2,2438.6,40.8]
[1751437691591,2.04946,2439.3,2438.9,2.35308228]
[1751437691792,0.81988,2439.0,2438.9,2.35308228]
[1751437691993,0.81992,2438.9,2438.8,1.3887]
[1751437693190,0.81992,2438.9,2438.8,2.20865]
[1751437694089,0.81992,2438.9,2438.8,1.3887]
[1751437694392,0.81992,2438.9,2438.8,2.20865]
[1751437694592,0.81991,2439.0,2438.8,2.20865]
[1751437694890,0.81992,2438.9,2438.8,1.3887]
[1751437695090,0.81992,2438.9,2438.8,2.87725]
[1751437695593,0.81986,2439.1,2439.0,0.81988]
[1751437696181,0.81986,2439.1,2439.0,1.53998]
[1751437696391,0.81986,2439.1,2439.0,2.88478]
[1751437696593,0.81986,2439.1,2439.0,2.0649]
[1751437696794,0.81986,2439.1,2439.0,0.7201]
[1751437697590,0.81985,2439.1,2439.0,1.53998]
[1751437697791,0.81985,2439.1,2439.0,0.7201]
[1751437698498,0.81985,2439.1,2439.0,2.0649]
[1751437701098,0.81985,2439.1,2439.0,0.7201]
[1751437702901,0.81988,2439.0,2438.9,0.81989]
[1751437704099,0.81992,2438.9,2438.8,0.6686]
[1751437704295,3.17300228,2438.9,2438.8,0.6686]
[1751437704492,0.81995,2438.8,2438.7,5.69750258]
[1751437704703,0.81995,2438.8,2438.7,6.42550258]
[1751437704896,0.81995,2438.8,2438.7,0.728]
[1751437709409,0.81995,2438.8,2438.7,1.54798]
[1751437709610,0.81995,2438.8,2438.7,0.728]
[1751437710711,0.81995,2438.8,2438.7,1.54798]
[1751437710912,0.81993,2438.9,2438.7,0.728]
[1751437711314,0.81993,2438.9,2438.7,1.54796]
[1751437711810,0.81995,2438.8,2438.7,1.54796]
[1751437712006,0.81995,2438.8,2438.7,0.728]
[1751437712208,0.81995,2438.8,2438.7,1.54798]
[1751437713713,0.81995,2438.8,2438.7,0.728]
[1751437722921,0.81994,2438.9,2438.7,3.90104228]
[1751437723122,0.81994,2438.9,2438.7,5.30514228]
[1751437723322,0.81994,2438.9,2438.8,0.81995]
[1751437723818,0.81994,2438.9,2438.7,5.30514228]
[1751437725223,0.81994,2438.9,2438.8,0.81995]
[1751437725418,0.81994,2438.9,2438.7,5.30513228]
[1751437725618,15.71762,2439.4,2439.0,0.81987]
[1751437725924,0.81981,2439.2,2439.1,0.6862]
[1751437742137,0.81981,2439.2,2439.1,2.0713]
[1751437743135,0.8198,2439.3,2439.1,2.89112]
[1751437743335,0.8198,2439.3,2439.2,2.35308228]
[1751437743737,0.81977,2439.4,2439.2,3.17288228]
[1751437744129,0.81977,2439.4,2439.2,4.55798228]
[1751437744332,0.81977,2439.4,2439.3,0.81978]
[1751437744632,0.81977,2439.4,2439.2,4.55798228]
[1751437744832,0.81977,2439.4,2439.3,0.81978]
[1751437745040,0.81977,2439.4,2439.3,2.18728]
[1751437745439,0.81977,2439.4,2439.3,2.91568]
[1751437745640,0.81977,2439.4,2439.3,2.0959]
[1751437746135,0.81977,2439.4,2439.3,2.91568]
[1751437746634,0.81977,2439.4,2439.3,1.3675]
[1751437747541,0.81974,2439.5,2439.3,2.18728]
[1751437747742,0.81974,2439.5,2439.4,0.7053]
[1751437748742,0.8197,2439.6,2439.4,1.52503]
[1751437749148,0.81971,2439.5,2439.4,0.7053]
[1751437762755,26.3181,2439.8,2439.4,1.52505]
[1751437762948,0.81971,2439.5,2439.4,1.52503]
[1751437763357,0.8197,2439.6,2439.4,1.52503]
[1751437763753,0.81971,2439.5,2439.4,0.7053]
[1751437765960,0.81971,2439.5,2439.4,1.52505]
[1751437766162,0.81971,2439.5,2439.4,0.7053]
[1751437766462,3.17279228,2439.5,2439.4,0.7053]
[1751437770456,0.81971,2439.5,2439.4,0.7053]
[1751437771364,0.81971,2439.5,2439.4,1.52505]
[1751437771566,0.81971,2439.5,2439.4,0.7053]
[1751437771958,0.81978,2439.3,2439.2,0.6842]
[1751437772253,0.81978,2439.3,2439.2,1.3794]
[1751437773768,0.81978,2439.3,2439.2,2.19921]
[1751437774065,3.17285228,2439.4,2439.2,2.19921]
[1751437774362,3.17285228,2439.4,2439.3,0.81978]
[1751437774562,3.17285228,2439.4,2439.2,2.1992]
[1751437775263,3.17285228,2439.4,2439.2,1.515]
[1751437776165,0.81969,2439.6,2439.2,3.04828228]
[1751437776358,36.553,2439.9,2439.5,0.81969]
[1751437776558,0.81965,2439.7,2439.6,0.6974]
[1751437778764,0.81975,2439.4,2439.3,0.81978]
[1751437778959,0.81975,2439.4,2439.3,0.6684]
[1751437782162,2.35308228,2439.5,2439.0,0.6829]
[1751437782362,3.79728228,2439.5,2439.0,2.0637]
[1751437782561,0.8198,2439.3,2439.1,0.81985]
[1751437783266,0.8198,2439.3,2439.1,2.20065]
[1751437784165,0.81981,2439.2,2439.1,2.20065]
[1751437784667,0.81981,2439.3,2439.1,2.20065]
[1751437785667,2.35308228,2439.3,2439.0,0.6829]
[1751437786263,0.81981,2439.2,2439.0,1.50277]
[1751437786568,0.81985,2439.1,2439.0,2.84977]
[1751437786761,0.81984,2439.2,2439.1,0.81985]
[1751437786968,0.81984,2439.2,2439.0,2.84976]
[1751437787265,0.81978,2439.4,2439.2,0.8198]
[1751437787466,0.81978,2439.4,2439.3,0.6991]
[1751437787868,0.81973,2439.5,2439.3,1.51886]
[1751437788067,0.81975,2439.4,2439.3,1.51886]
[1751437788973,0.81974,2439.5,2439.3,1.51886]
[1751437789171,0.81975,2439.4,2439.3,1.51886]
[1751437789769,0.81973,2439.5,2439.3,1.51886]
[1751437790470,0.81973,2439.5,2439.4,0.81975]
[1751437791368,2.35308228,2439.8,2439.6,0.81967]
[1751437791871,0.81967,2439.7,2439.5,0.81969]
[1751437792071,0.81968,2439.6,2439.5,0.81969]
[1751437792571,0.81967,2439.7,2439.6,0.81968]
[1751437792766,3.17272228,2439.8,2439.6,0.81968]
[1751437792970,0.81965,2439.7,2439.6,0.81968]
[1751437793172,0.81965,2439.7,2439.4,3.67908228]
[1751437793173,0.81959,2439.9,2439.4,3.67908228]
[1751437793470,0.81962,2439.8,2439.6,0.81966]
[1751437793873,0.81962,2439.8,2439.7,41.61965]
[1751437794072,0.81962,2439.8,2439.7,40.8]
[1751437795765,0.8196,2439.9,2439.7,41.61965]
[1751437795965,0.81961,2439.8,2439.7,40.8]
[1751437797472,0.8196,2439.9,2439.7,41.61965]
[1751437797677,0.81953,2440.1,2439.9,0.81957]
[1751437797877,25.76353,2440.1,2439.8,2.91808]
[1751437798178,2.35308228,2440.0,2439.7,40.8]
[1751437798368,3.17269228,2439.8,2439.7,40.8]
[1751437799272,0.81958,2439.9,2439.7,41.61963]
[1751437799578,0.81961,2439.9,2439.7,40.8]
[1751437799780,0.81961,2439.9,2439.7,41.61963]
[1751437800281,2.35308228,2440.3,2440.0,0.81955]
[1751437800480,2.35308228,2440.1,2439.8,0.7286]
[1751437800776,3.17261228,2440.1,2439.9,0.81957]
[1751437801181,3.17261228,2440.1,2439.8,2.0637]
[1751437801182,2.35308228,2440.1,2439.8,2.0637]
[1751437801583,3.17262228,2440.1,2439.9,0.81958]
[1751437801882,0.81951,2440.1,2439.9,0.81956]
[1751437802680,0.81951,2440.1,2440.0,0.81955]
[1751437802879,3.17256228,2440.2,2439.8,2.0637]
[1751437803178,0.81951,2440.1,2439.9,2.23476]
[1751437803377,0.81946,2440.3,2440.1,0.8195]
[1751437803578,0.2918,2440.5,2440.2,2.35308228]
[1751437803785,0.2918,2440.5,2440.4,0.81941]
[1751437804188,0.2918,2440.5,2440.4,3.17249228]
[1751437804380,0.2918,2440.5,2440.4,4.58769228]
[1751437805090,0.2918,2440.5,2440.4,5.28919228]
[1751437807187,11.593,2441.1,2440.4,9.46978228]
[1751437807386,11.593,2441.1,2440.7,2.35308228]
[1751437807581,2.37218228,2441.8,2441.0,2.35308228]
[1751437807785,0.81905,2441.5,2441.3,3.17218228]
[1751437807983,0.819,2441.7,2441.4,41.4931]
[1751437808285,0.819,2441.7,2441.5,0.81904]
[1751437808481,58.997,2442.2,2441.8,0.81892]
[1751437808688,0.81887,2442.1,2441.9,0.8189]
[1751437808989,11.591,2442.3,2442.0,0.81886]
[1751437809290,0.81875,2442.4,2441.9,2.35308228]
[1751437809587,0.81872,2442.5,2442.2,0.81879]
[1751437810095,0.81871,2442.5,2442.2,0.81879]
[1751437810398,2.35308228,2442.6,2442.1,2.35308228]
[1751437810399,2.35308228,2442.6,2442.4,0.81874]
[1751437810588,2.35308228,2442.6,2442.1,2.35308228]
[1751437810589,2.35308228,2442.6,2442.1,3.67908228]
[1751437810789,0.81866,2442.7,2442.3,3.17184228]
[1751437810988,0.81866,2442.7,2442.3,2.35308228]
[1751437811286,0.81866,2442.7,2442.4,0.81874]
[1751437811487,0.7078,2442.8,2442.3,3.67908228]
[1751437811688,2.0863,2442.8,2442.3,3.67908228]
[1751437811893,2.37218228,2442.9,2442.3,3.67908228]
[1751437811894,13.94408228,2443.1,2442.5,2.35308228]
[1751437812193,0.81859,2442.9,2442.6,0.81866]
[1751437812590,0.81859,2442.9,2442.5,3.17177228]
[1751437812790,11.591,2443.1,2442.6,0.81866]
[1751437812993,11.591,2443.1,2442.6,1.9972]
[1751437813198,0.81857,2442.9,2442.6,1.9972]
[1751437813493,0.81859,2442.9,2442.7,40.8]
[1751437815793,0.81855,2443.0,2442.7,43.97171228]
[1751437815989,0.81855,2443.0,2442.8,1.4478]
[1751437816298,0.81857,2442.9,2442.8,1.4478]
[1751437817100,0.81856,2443.0,2442.8,1.4478]
[1751437818300,0.81857,2442.9,2442.8,1.4478]
[1751437818798,2.35308228,2443.2,2442.8,1.4478]
[1751437819001,0.81857,2442.9,2442.8,1.4478]
[1751437820901,0.81861,2442.8,2442.7,40.8]
[1751437822600,0.81861,2442.8,2442.7,42.1398]
[1751437823198,3.70828228,2443.2,2442.7,42.1398]
[1751437823502,0.81857,2442.9,2442.8,0.6701]
[1751437824702,0.81856,2443.0,2442.8,2.1023]
[1751437825198,0.81857,2442.9,2442.8,2.1023]
[1751437826207,0.81857,2442.9,2442.8,0.6701]
[1751437827307,0.81857,2443.0,2442.8,0.6701]
[1751437827506,0.81857,2442.9,2442.8,0.6701]
[1751437827704,0.81857,2442.9,2442.8,2.1065]
[1751437830604,6.41563228,2443.3,2442.8,2.1065]
[1751437830803,0.81857,2442.9,2442.8,2.1065]
[1751437831805,0.81861,2442.8,2442.7,40.8]
[1751437832196,0.81861,2442.8,2442.7,41.61864]
[1751437833406,0.81861,2442.8,2442.7,40.8]
[1751437833606,0.81861,2442.8,2442.7,41.61864]
[1751437833802,0.81861,2442.8,2442.7,40.8]
[1751437834499,0.81859,2442.9,2442.7,40.8]
[1751437834806,0.81859,2442.9,2442.7,41.61864]
[1751437835101,0.81856,2443.0,2442.7,42.99054]
[1751437835307,0.81857,2442.9,2442.7,44.52498228]
[1751437835501,0.81857,2443.0,2442.8,1.51751]
[1751437835697,0.8185,2443.2,2443.0,0.81853]
[1751437835902,0.8185,2443.2,2443.0,0.81854]
[1751437836101,0.8185,2443.2,2443.1,0.6705]
[1751437836302,0.81846,2443.3,2443.1,0.6705]
[1751437836504,0.81843,2443.4,2443.1,3.02358228]
[1751437836808,0.8184,2443.5,2443.3,3.17151228]
[1751437837200,40.25518228,2443.8,2443.3,2.35308228]
[1751437837501,0.81845,2443.3,2443.1,3.84207228]
[1751437838303,0.81845,2443.3,2443.1,1.48899]
[1751437838505,0.81847,2443.2,2443.1,0.6705]
[1751437840212,2.35308228,2443.4,2443.1,1.48901]
[1751437840512,0.81847,2443.3,2443.1,1.48901]
[1751437841012,0.81847,2443.3,2443.1,3.84209228]
[1751437843521,0.81847,2443.2,2443.1,3.02358228]
[1751437843720,0.81847,2443.2,2443.1,3.84209228]
[1751437844121,0.81846,2443.3,2443.1,3.84209228]
[1751437844320,0.81847,2443.2,2443.1,3.84209228]
[1751437844522,0.81846,2443.3,2443.1,3.84209228]
[1751437844823,0.81847,2443.2,2443.1,3.02358228]
[1751437845027,0.81854,2443.1,2442.8,0.6905]
[1751437845220,0.81848,2443.2,2443.0,0.81853]
[1751437845522,0.81851,2443.1,2443.0,0.81853]
[1751437845825,0.81851,2443.1,2442.9,1.51785]
[1751437846424,0.81849,2443.2,2443.0,0.81852]
[1751437846724,0.81849,2443.2,2443.1,0.81851]
[1751437846919,0.81849,2443.2,2443.0,0.81852]
[1751437847125,0.81847,2443.2,2443.0,3.17160228]
[1751437847427,0.81847,2443.2,2443.0,3.87570228]
[1751437847626,0.81847,2443.2,2443.1,0.81851]
[1751437848225,0.81847,2443.2,2443.0,3.87570228]
[1751437848717,0.81851,2443.1,2443.0,3.87570228]
[1751437848921,0.81851,2443.1,2443.0,0.7041]
[1751437849426,0.81851,2443.1,2443.0,1.52264]
[1751437850126,0.81854,2443.0,2442.9,0.6993]
[1751437853924,0.81853,2443.1,2442.9,1.51786]
[1751437854130,0.81854,2443.0,2442.9,1.51786]
[1751437854332,0.81854,2443.0,2442.9,0.6993]
[1751437854632,0.81853,2443.1,2442.9,1.51786]
[1751437857337,0.81853,2443.1,2442.9,0.6993]
[1751437857538,0.81853,2443.1,2442.9,1.51786]
[1751437858333,0.81854,2443.0,2442.9,0.6993]
[1751437859242,0.81854,2443.0,2442.9,1.51787]
[1751437859633,3.17162228,2443.0,2442.9,0.6993]
[1751437860138,0.81861,2442.8,2442.7,41.4813]
[1751437860339,0.81858,2442.9,2442.7,42.29992]
[1751437860939,0.81861,2442.8,2442.7,41.4813]
[1751437861238,0.81859,2442.9,2442.7,42.29994]
[1751437862940,0.8186,2442.9,2442.7,42.29993]
[1751437863140,0.81856,2443.0,2442.7,42.29993]
[1751437863333,0.81853,2443.1,2442.8,0.8186]
[1751437863537,0.81854,2443.1,2442.8,0.8186]
[1751437864042,0.81855,2443.0,2442.8,0.8186]
[1751437864444,0.81853,2443.1,2442.8,0.8186]
[1751437864644,5.75747228,2443.4,2442.7,43.65522]
[1751437864947,2.35308228,2443.2,2442.7,43.65522]
[1751437865138,0.81856,2443.0,2442.8,0.8186]
[1751437867946,0.81853,2443.1,2442.8,0.8186]
[1751437868148,0.81853,2443.1,2442.9,0.81857]
[1751437868346,2.35308228,2443.2,2442.8,1.352]
[1751437868845,0.81856,2443.0,2442.8,2.17059]
[1751437869848,0.81853,2443.1,2442.9,0.81856]
[1751437870249,0.81853,2443.1,2443.0,0.6689]
[1751437871045,1.3398,2443.3,2443.0,0.6689]
[1751437871253,0.8185,2443.2,2443.0,1.48743]
[1751437871548,0.81851,2443.1,2443.0,0.6689]
[1751437873254,0.8185,2443.2,2443.0,0.6689]
[1751437873445,0.81851,2443.1,2443.0,0.6689]
[1751437873750,0.81849,2443.2,2443.0,1.48744]
[1751437874651,0.81851,2443.1,2443.0,1.48744]
[1751437874851,4.47608228,2443.5,2443.0,1.48744]
[1751437875446,0.8185,2443.2,2443.0,1.48744]
[1751437875651,4.47608228,2443.5,2443.0,1.48744]
[1751437875950,0.81851,2443.1,2443.0,0.6689]
[1751437876149,0.8185,2443.2,2443.0,1.48744]
[1751437876354,4.47608228,2443.5,2443.0,0.6689]
[1751437876355,0.81851,2443.1,2443.0,0.6689]
[1751437877450,0.81854,2443.0,2442.8,0.81858]
[1751437877651,0.81859,2442.9,2442.7,2.24173]
[1751437878352,0.81857,2442.9,2442.7,2.24172]
[1751437879155,0.81857,2442.9,2442.8,0.81861]
[1751437879355,0.81856,2443.0,2442.8,0.81861]
[1751437879557,0.81857,2442.9,2442.8,0.81861]
[1751437879851,2.35308228,2442.9,2442.5,5.73043361]
[1751437880156,2.35308228,2442.9,2442.5,6.40263361]
[1751437880157,3.17175228,2442.6,2442.5,6.40263361]
[1751437880361,3.17175228,2442.6,2442.5,0.6722]
[1751437882461,0.81867,2442.6,2442.5,0.6722]
[1751437884053,2.04635,2443.1,2442.5,0.6722]
[1751437884261,0.81867,2442.6,2442.5,0.6722]
[1751437885362,0.81866,2442.7,2442.5,1.49091]
[1751437887964,0.81863,2442.8,2442.6,0.81867]
[1751437888356,2.35308228,2442.9,2442.5,0.6722]
[1751437888357,0.81864,2442.7,2442.5,1.49089]
[1751437889859,0.81864,2442.7,2442.5,0.6722]
[1751437890064,0.81867,2442.6,2442.5,0.6722]
[1751437895164,2.04643,2443.0,2442.5,1.49091]
[1751437895371,2.04623,2443.2,2442.5,1.49091]
[1751437895372,0.81866,2442.7,2442.5,0.6722]
[1751437895667,0.81866,2442.7,2442.5,1.49089]
[1751437896469,0.81867,2442.7,2442.5,1.49089]
[1751437897273,0.81862,2442.8,2442.6,0.81867]
[1751437897676,0.81864,2442.7,2442.5,1.49088]
[1751437897974,0.81864,2442.7,2442.6,0.81867]
[1751437898176,0.81863,2442.8,2442.6,0.81867]
[1751437898372,0.81862,2442.8,2442.6,2.21826]
[1751437898573,0.81862,2442.8,2442.6,1.3996]
[1751437898774,0.81864,2442.7,2442.6,1.3996]
[1751437899171,0.81867,2442.6,2442.5,1.3464]
[1751437906385,0.81867,2442.6,2442.5,0.6722]
[1751437910683,0.81874,2442.4,2442.3,0.6588]
[1751437910876,2.35308228,2442.4,2442.1,0.6843]
[1751437911082,0.81881,2442.2,2442.1,0.6843]
[1751437911477,0.81884,2442.1,2442.0,0.6871]
[1751437911682,0.81888,2442.0,2441.9,6.41473361]
[1751437911882,3.17196228,2442.0,2441.9,6.41473361]
[1751437912276,3.17196228,2442.0,2441.9,0.6843]
[1751437913782,0.81888,2442.0,2441.9,0.6843]
[1751437917088,0.81888,2442.0,2441.9,2.0628]
[1751437917792,1.3402,2442.5,2441.9,2.0628]
[1751437917992,11.567,2442.5,2442.0,3.73158228]
[1751437918189,11.567,2442.5,2442.1,2.92513]
[1751437918387,0.81876,2442.4,2442.2,4.60208228]